[Event "ESTCC-65 2025"]
[Site "Swidnica"]
[Date "2025.04.13"]
[Round "9.8"]
[White "Patola, Eero"]
[Black "Baker, Chris W"]
[Result "0-1"]
[Annotator "ChessBase"]
[ECO "A22"]
[WhiteElo "1872"]
[BlackElo "2151"]
[PlyCount "112"]
[EventDate "2025.04.05"]
[EventType "team-tourn"]
[EventCountry "POL"]
[SourceTitle "playchess.com"]
[Source "ChessBase"]
[SourceQuality "1"]
[WhiteTeam "Finland"]
[BlackTeam "England"]
[WhiteTeamCountry "FIN"]
[BlackTeamCountry "ENG"]
[TimeControl "40/5400+30:1800+30"]

1. c4 {[%emt 0:00:53]} e5 {[%emt 0:00:30]} 2. Nc3 {[%emt 0:00:26]} Nf6 {[%emt 0:00:49]} 3. e4 {[%emt 0:00:33]} Bc5 {[%emt 0:02:19]} 4. g3 {[%emt 0:00:20]} O-O {[%emt 0:01:20]} 5. d3 {[%emt 0:00:51]} d6 {[%emt 0:02:25]} 6. h3 {[%emt 0:00:32]} c6 {[%emt 0:04:16]} 7. Bg2 {[%emt 0:02:14]} a5 {[%emt 0:04:44]} 8. Nge2 {[%emt 0:03:07]} b5 {[%emt 0:11:09]} 9. O-O {[%emt 0:05:05]} b4 {[%emt 0:03:06]} 10. Nb1 {[%emt 0:01:10]} Qb6 {[%emt 0:04:54]} 11. Nd2 {[%emt 0:01:28]} a4 {[%emt 0:02:24]} 12. Nf3 {[%emt 0:00:30]} Be6 {[%emt 0:01:56]} 13. Bg5 {[%emt 0:01:34]} Nbd7 {[%emt 0:05:55]} 14. Qd2 {[%emt 0:01:20]} h6 {[%emt 0:05:35]} 15. Be3 {[%emt 0:08:14]} d5 {[%emt 0:02:59]} 16. Bxc5 {[%emt 0:01:39]} Qxc5 {[%emt 0:02:35]} 17. cxd5 {[%emt 0:08:48]} cxd5 {[%emt 0:00:53]} 18. Rfc1 {[%emt 0:01:10]} Qb6 {[%emt 0:00:53]} 19. exd5 {[%emt 0:05:45]} Bxd5 {[%emt 0:00:59]} 20. Qe3 {[%emt 0:01:59]} Qb7 {[%emt 0:02:42]} 21. Ne1 {[%emt 0:04:21]} Bxg2 {[%emt 0:03:56]} 22. Nxg2 {[%emt 0:00:14]} Nd5 {[%emt 0:07:43]} 23. Qd2 {[%emt 0:01:39]} Rac8 {[%emt 0:02:08]} 24. Ne3 {[%emt 0:03:37]} Nxe3 {[%emt 0:02:55]} 25. Qxe3 {[%emt 0:00:31]} Qd5 {[%emt 0:01:43]} 26. Qe4 {[%emt 0:08:27]} Qxe4 {[%emt 0:00:50]} 27. dxe4 {[%emt 0:00:28]} Nc5 {[%emt 0:00:20]} 28. Rc4 {[%emt 0:04:41]} Nd3 {[%emt 0:00:31]} 29. b3 {[%emt 0:01:33]} Rxc4 {[%emt 0:00:27]} 30. bxc4 {[%emt 0:00:16]} Rc8 {[%emt 0:03:01]} 31. Rd1 {[%emt 0:02:47]} Nb2 {[%emt 0:01:32]} 32. Rd5 {[%emt 0:00:39]} Rxc4 {[%emt 0:00:41]} 33. Rxe5 {[%emt 0:00:42]} f6 {[%emt 0:00:49]} 34. Ra5 {[%emt 0:04:41]} Rxe4 {[%emt 0:02:48]} 35. Kf1 {[%emt 0:01:57]} a3 {[%emt 0:01:15]} 36. h4 {[%emt 0:01:19]} Nc4 {[%emt 0:03:02]} 37. Ra8+ {[%emt 0:01:42]} Kf7 {[%emt 0:02:47]} 38. f3 {[%emt 0:05:16]} Re3 {[%emt 0:01:38]} 39. Kf2 {[%emt 0:00:27]} b3 {[%emt 0:01:14]} 40. Ra7+ {[%emt 0:00:00]} Kg8 {[%emt 0:00:00]} 41. axb3 {[%emt 0:04:29]} Rxb3 {[%emt 0:04:21]} 42. Ra4 {[%emt 0:02:10]} Nb6 {[%emt 0:03:13]} 43. Ra7 {[%emt 0:01:11]} Nd5 {[%emt 0:00:26]} 44. h5 {[%emt 0:03:43]} Kf8 {[%emt 0:04:22]} 45. g4 {[%emt 0:02:17]} Nb4 {[%emt 0:01:44]} 46. Nd4 {[%emt 0:01:17]} Rb2+ {[%emt 0:00:15]} 47. Kg3 {[%emt 0:00:24]} a2 {[%emt 0:00:40]} 48. Ne6+ {[%emt 0:03:51]} Kg8 {[%emt 0:02:45]} 49. Rxg7+ {[%emt 0:02:45]} Kh8 {[%emt 0:00:11]} 50. Ra7 {[%emt 0:00:51]} Rb1 {[%emt 0:01:10]} 51. Ra8+ {[%emt 0:21:45]} Kh7 {[%emt 0:00:08]} 52. Ra7+ {[%emt 0:02:54]} Kg8 {[%emt 0:00:11]} 53. Rg7+ {[%emt 0:00:40]} Kh8 {[%emt 0:00:08]} 54. Rg6 {[%emt 0:00:26]} a1=Q 55. Rxh6+ {[%emt 0:02:22]} Kg8 {[%emt 0:00:41]} 56. Rg6+ {[%emt 0:02:32]} Kf7 {[%emt 0:00:15]} 0-1

[Event "ESTCC-65 2025"]
[Site "Swidnica"]
[Date "2025.04.13"]
[Round "9.9"]
[White "Vadlja, Stjepan"]
[Black "Maier, Christian"]
[Result "0-1"]
[Annotator "ChessBase"]
[ECO "D30"]
[WhiteElo "1697"]
[BlackElo "2233"]
[PlyCount "71"]
[EventDate "2025.04.05"]
[EventType "team-tourn"]
[EventCountry "POL"]
[SourceTitle "playchess.com"]
[Source "ChessBase"]
[SourceQuality "1"]
[WhiteTeam "Croatia"]
[BlackTeam "Germany"]
[WhiteTeamCountry "CRO"]
[BlackTeamCountry "GER"]
[TimeControl "40/5400+30:1800+30"]

1. d4 {[%emt 0:00:13]} d5 {[%emt 0:00:12]} 2. c4 {[%emt 0:00:23]} e6 {[%emt 0:00:04]} 3. e3 Nf6 4. Bd2 {[%emt 0:01:49]} c5 {[%emt 0:00:42]} 5. Nf3 {[%emt 0:00:15]} Nc6 {[%emt 0:00:06]} 6. Bc3 {[%emt 0:00:20]} cxd4 {[%emt 0:00:44]} 7. Nxd4 {[%emt 0:00:08]} Be7 {[%emt 0:00:13]} 8. Be2 {[%emt 0:00:57]} O-O {[%emt 0:00:18]} 9. Nd2 {[%emt 0:00:20]} Bd7 {[%emt 0:01:54]} 10. a3 {[%emt 0:00:20]} Qb8 {[%emt 0:00:24]} 11. b4 {[%emt 0:01:08]} e5 {[%emt 0:00:12]} 12. N4b3 {[%emt 0:02:35]} Bd6 {[%emt 0:01:56]} 13. Rc1 {[%emt 0:07:21]} Be6 {[%emt 0:03:13]} 14. c5 {[%emt 0:01:49]} Bc7 {[%emt 0:00:31]} 15. h3 {[%emt 0:03:01]} Re8 {[%emt 0:03:57]} 16. O-O {[%emt 0:00:27]} Qd8 {[%emt 0:00:23]} 17. Bb5 {[%emt 0:01:40]} Bd7 {[%emt 0:02:51]} 18. Be2 {[%emt 0:00:48]} Ne7 {[%emt 0:03:32]} 19. b5 {[%emt 0:01:12]} Ng6 {[%emt 0:00:07]} 20. Bb4 {[%emt 0:00:42]} Be6 {[%emt 0:00:20]} 21. a4 {[%emt 0:03:19]} d4 {[%emt 0:01:58]} 22. exd4 {[%emt 0:00:43]} exd4 {[%emt 0:00:01]} 23. a5 {[%emt 0:03:18]} Nd5 {[%emt 0:00:36]} 24. Ba3 {[%emt 0:02:41]} Nc3 {[%emt 0:00:12]} 25. Rxc3 {[%emt 0:03:05]} dxc3 {[%emt 0:00:05]} 26. Nf3 {[%emt 0:00:20]} Bxb3 {[%emt 0:00:08]} 27. Qxb3 {[%emt 0:04:35]} Rxe2 {[%emt 0:00:17]} 28. Qxc3 {[%emt 0:00:16]} Bxa5 {[%emt 0:00:12]} 29. Qc4 {[%emt 0:00:24]} Re8 {[%emt 0:00:23]} 30. Bb2 {[%emt 0:00:27]} Bc7 {[%emt 0:00:15]} 31. Qg4 {[%emt 0:01:45]} Ne5 {[%emt 0:00:47]} 32. Nxe5 {[%emt 0:01:01]} Bxe5 {[%emt 0:00:05]} 33. Bc1 {[%emt 0:00:41]} Qd4 {[%emt 0:00:25]} 34. Qf3 {[%emt 0:01:48]} Qxc5 {[%emt 0:00:20]} 35. Qxb7 {[%emt 0:00:22]} Rab8 {[%emt 0:01:37]} 36. Qc6 0-1

[Event "ESTCC-65 2025"]
[Site "Swidnica"]
[Date "2025.04.13"]
[Round "9.10"]
[White "Raupp, Thomas"]
[Black "Sobocanec, Alojz"]
[Result "1-0"]
[Annotator "ChessBase"]
[ECO "A11"]
[WhiteElo "2247"]
[BlackElo "1792"]
[PlyCount "59"]
[EventDate "2025.04.05"]
[EventType "team-tourn"]
[EventCountry "POL"]
[SourceTitle "playchess.com"]
[Source "ChessBase"]
[SourceQuality "1"]
[WhiteTeam "Germany"]
[BlackTeam "Croatia"]
[WhiteTeamCountry "GER"]
[BlackTeamCountry "CRO"]
[TimeControl "40/5400+30:1800+30"]

1. c4 {[%emt 0:00:10]} c6 {[%emt 0:15:12]} 2. Nf3 {[%emt 0:01:29]} d6 {[%emt 0:00:27]} 3. d4 {[%emt 0:01:14]} e6 {[%emt 0:01:55]} 4. g3 {[%emt 0:01:25]} Nf6 {[%emt 0:00:33]} 5. Bg2 {[%emt 0:00:20]} Be7 {[%emt 0:00:07]} 6. O-O {[%emt 0:00:12]} O-O {[%emt 0:00:01]} 7. b3 {[%emt 0:04:53]} d5 {[%emt 0:00:48]} 8. Bb2 {[%emt 0:00:42]} Ne4 {[%emt 0:01:08]} 9. Nbd2 {[%emt 0:07:10]} f5 {[%emt 0:00:03]} 10. Ne5 {[%emt 0:01:00]} Nd7 {[%emt 0:00:08]} 11. Nd3 {[%emt 0:02:49]} Bg5 {[%emt 0:02:13]} 12. Nf3 {[%emt 0:01:55]} Be7 {[%emt 0:01:05]} 13. Qc2 {[%emt 0:03:56]} h6 {[%emt 0:00:36]} 14. Rad1 {[%emt 0:02:06]} Rb8 {[%emt 0:01:42]} 15. Nf4 {[%emt 0:03:00]} Rf6 {[%emt 0:01:33]} 16. Ne5 {[%emt 0:08:46]} Nf8 {[%emt 0:01:14]} 17. Nh5 {[%emt 0:03:55]} Bd6 {[%emt 0:02:45]} 18. Nxf6+ {[%emt 0:02:07]} Qxf6 {[%emt 0:00:02]} 19. f3 {[%emt 0:05:02]} Ng5 {[%emt 0:00:16]} 20. e4 {[%emt 0:07:14]} Qd8 {[%emt 0:02:01]} 21. Rfe1 {[%emt 0:07:36]} Qc7 {[%emt 0:02:23]} 22. cxd5 {[%emt 0:10:31]} Qb6 {[%emt 0:01:05]} 23. Nc4 {[%emt 0:00:18]} Qc7 24. Nxd6 Qxd6 {[%emt 0:02:20]} 25. dxc6 {[%emt 0:01:10]} bxc6 {[%emt 0:00:08]} 26. e5 {[%emt 0:00:18]} Qe7 {[%emt 0:00:44]} 27. f4 {[%emt 0:00:11]} Nf7 {[%emt 0:00:18]} 28. Bxc6 {[%emt 0:00:23]} Bb7 {[%emt 0:00:22]} 29. Bxb7 {[%emt 0:00:24]} Rxb7 {[%emt 0:00:03]} 30. d5 {[%emt 0:00:55]} 1-0

[Event "ESTCC-65 2025"]
[Site "Swidnica"]
[Date "2025.04.13"]
[Round "9.11"]
[White "Novak, Stjepan"]
[Black "Miltner, Arndt"]
[Result "0-1"]
[Annotator "ChessBase"]
[ECO "B00"]
[WhiteElo "1671"]
[BlackElo "2232"]
[PlyCount "28"]
[EventDate "2025.04.05"]
[EventType "team-tourn"]
[EventCountry "POL"]
[SourceTitle "playchess.com"]
[Source "ChessBase"]
[SourceQuality "1"]
[WhiteTeam "Croatia"]
[BlackTeam "Germany"]
[WhiteTeamCountry "CRO"]
[BlackTeamCountry "GER"]
[TimeControl "40/5400+30:1800+30"]

1. e4 {[%emt 0:00:12]} d6 {[%emt 0:00:12]} 2. f4 {[%emt 0:00:23]} Nf6 {[%emt 0:00:33]} 3. d3 {[%emt 0:00:21]} d5 {[%emt 0:00:57]} 4. e5 {[%emt 0:01:39]} Ng8 {[%emt 0:01:26]} 5. d4 {[%emt 0:00:21]} g6 {[%emt 0:01:00]} 6. c4 {[%emt 0:02:19]} c6 {[%emt 0:01:36]} 7. Qa4 {[%emt 0:02:49]} dxc4 {[%emt 0:01:30]} 8. Qxc4 {[%emt 0:00:10]} Nh6 {[%emt 0:02:28]} 9. h3 {[%emt 0:06:57]} Nf5 {[%emt 0:01:49]} 10. Ne2 {[%emt 0:00:16]} h5 {[%emt 0:01:49]} 11. Nbc3 {[%emt 0:00:59]} Be6 {[%emt 0:00:56]} 12. Qd3 {[%emt 0:00:58]} Na6 {[%emt 0:02:04]} 13. a3 {[%emt 0:03:40]} Nc5 {[%emt 0:01:16]} 14. Qd2 {[%emt 0:00:21]} Nb3 0-1

[Event "ESTCC-65 2025"]
[Site "Swidnica"]
[Date "2025.04.13"]
[Round "9.12"]
[White "Vogel, Robert"]
[Black "Petanjek, Zvonko"]
[Result "1-0"]
[Annotator "ChessBase"]
[ECO "D30"]
[WhiteElo "2145"]
[BlackElo "1732"]
[PlyCount "77"]
[EventDate "2025.04.05"]
[EventType "team-tourn"]
[EventCountry "POL"]
[SourceTitle "playchess.com"]
[Source "ChessBase"]
[SourceQuality "1"]
[WhiteTeam "Germany"]
[BlackTeam "Croatia"]
[WhiteTeamCountry "GER"]
[BlackTeamCountry "CRO"]
[TimeControl "40/5400+30:1800+30"]

1. d4 {[%emt 0:00:15]} d5 {[%emt 0:00:06]} 2. c4 {[%emt 0:00:11]} e6 {[%emt 0:00:03]} 3. Nf3 {[%emt 0:00:13]} Nf6 {[%emt 0:00:24]} 4. g3 {[%emt 0:00:21]} h6 {[%emt 0:00:16]} 5. Bg2 {[%emt 0:01:45]} Be7 {[%emt 0:00:26]} 6. O-O {[%emt 0:00:30]} O-O {[%emt 0:03:00]} 7. Nbd2 {[%emt 0:00:58]} Nc6 {[%emt 0:00:45]} 8. b3 {[%emt 0:00:54]} Nh7 {[%emt 0:00:30]} 9. Bb2 {[%emt 0:04:10]} Ng5 {[%emt 0:00:24]} 10. Re1 {[%emt 0:03:25]} Bf6 {[%emt 0:00:14]} 11. e3 {[%emt 0:06:25]} Ne7 {[%emt 0:02:45]} 12. Qc2 {[%emt 0:01:20]} Ng6 {[%emt 0:00:20]} 13. Rad1 {[%emt 0:01:36]} c6 {[%emt 0:00:06]} 14. e4 {[%emt 0:04:22]} Be7 {[%emt 0:00:43]} 15. h4 {[%emt 0:04:18]} Nh7 {[%emt 0:00:33]} 16. e5 {[%emt 0:06:19]} Bb4 {[%emt 0:00:15]} 17. Re2 {[%emt 0:02:25]} Bxd2 {[%emt 0:03:36]} 18. Rdxd2 {[%emt 0:02:43]} Re8 {[%emt 0:01:45]} 19. Rd3 {[%emt 0:02:56]} Ne7 {[%emt 0:00:16]} 20. Qd2 {[%emt 0:02:18]} Nf5 {[%emt 0:00:44]} 21. Bc1 {[%emt 0:01:06]} a6 {[%emt 0:01:11]} 22. c5 {[%emt 0:01:10]} Rb8 {[%emt 0:01:27]} 23. Ba3 {[%emt 0:02:02]} Bd7 {[%emt 0:04:50]} 24. Bb4 {[%emt 0:01:28]} b6 {[%emt 0:06:11]} 25. cxb6 {[%emt 0:01:46]} Qxb6 {[%emt 0:00:08]} 26. Bc5 {[%emt 0:00:39]} Qd8 {[%emt 0:01:06]} 27. Re1 {[%emt 0:00:41]} Bc8 {[%emt 0:00:24]} 28. Bf1 {[%emt 0:00:29]} Nf8 {[%emt 0:00:43]} 29. Rc3 {[%emt 0:00:45]} Nd7 {[%emt 0:00:11]} 30. Ba3 {[%emt 0:02:22]} Qa5 {[%emt 0:00:26]} 31. Qb2 {[%emt 0:01:01]} Qb6 {[%emt 0:02:50]} 32. Rc2 {[%emt 0:01:17]} Qd8 {[%emt 0:00:25]} 33. Rxc6 {[%emt 0:00:42]} Rb6 {[%emt 0:00:36]} 34. Rec1 {[%emt 0:00:54]} Rxc6 {[%emt 0:00:52]} 35. Rxc6 {[%emt 0:00:06]} Nb8 {[%emt 0:00:12]} 36. Rc1 {[%emt 0:01:23]} Nd7 {[%emt 0:00:42]} 37. Bd3 {[%emt 0:00:56]} Ne7 {[%emt 0:00:43]} 38. Qc3 {[%emt 0:00:33]} Bb7 {[%emt 0:01:11]} 39. Qc7 {[%emt 0:00:29]} 1-0

[Event "ESTCC-65 2025"]
[Site "Swidnica"]
[Date "2025.04.13"]
[Round "9.13"]
[White "Quinn, John M"]
[Black "Sandner, Gunter"]
[Result "1/2-1/2"]
[Annotator "ChessBase"]
[ECO "A40"]
[WhiteElo "2073"]
[BlackElo "2243"]
[PlyCount "56"]
[EventDate "2025.04.05"]
[EventType "team-tourn"]
[EventCountry "POL"]
[SourceTitle "playchess.com"]
[Source "ChessBase"]
[SourceQuality "1"]
[WhiteTeam "England"]
[BlackTeam "Germany"]
[WhiteTeamCountry "ENG"]
[BlackTeamCountry "GER"]
[TimeControl "40/5400+30:1800+30"]

1. d4 {[%emt 0:00:02]} g6 {[%emt 0:00:17]} 2. c4 {[%emt 0:00:43]} Bg7 {[%emt 0:00:31]} 3. Nc3 {[%emt 0:02:09]} c5 {[%emt 0:00:22]} 4. d5 {[%emt 0:00:10]} d6 {[%emt 0:03:48]} 5. e4 {[%emt 0:00:40]} Nf6 {[%emt 0:01:02]} 6. Nge2 {[%emt 0:01:58]} O-O {[%emt 0:03:01]} 7. Ng3 {[%emt 0:00:06]} a6 {[%emt 0:02:02]} 8. a4 {[%emt 0:02:05]} e6 {[%emt 0:03:29]} 9. Be2 {[%emt 0:00:22]} Re8 {[%emt 0:04:54]} 10. O-O {[%emt 0:00:33]} exd5 {[%emt 0:02:03]} 11. cxd5 {[%emt 0:00:15]} Nbd7 {[%emt 0:01:38]} 12. h3 {[%emt 0:06:29]} Qc7 {[%emt 0:02:35]} 13. Be3 {[%emt 0:06:26]} Rb8 {[%emt 0:01:57]} 14. Qd2 {[%emt 0:05:12]} h5 {[%emt 0:08:11]} 15. f3 {[%emt 0:15:30]} Nf8 {[%emt 0:10:41]} 16. Rfc1 {[%emt 0:03:37]} Qe7 {[%emt 0:03:30]} 17. Bg5 {[%emt 0:10:31]} N8h7 {[%emt 0:02:52]} 18. Bf4 {[%emt 0:00:16]} Nd7 {[%emt 0:00:43]} 19. Kh1 {[%emt 0:02:29]} Ne5 {[%emt 0:03:48]} 20. Nf1 {[%emt 0:04:13]} g5 {[%emt 0:05:12]} 21. Bh2 {[%emt 0:00:21]} Ng6 {[%emt 0:00:40]} 22. Ne3 {[%emt 0:04:17]} Be5 {[%emt 0:01:05]} 23. Bxe5 {[%emt 0:02:18]} Qxe5 {[%emt 0:02:17]} 24. Nc4 {[%emt 0:00:18]} Qf6 {[%emt 0:00:07]} 25. a5 {[%emt 0:02:05]} Nhf8 {[%emt 0:02:40]} 26. Rf1 {[%emt 0:03:59]} Nf4 {[%emt 0:13:39]} 27. Bd1 {[%emt 0:08:54]} N8g6 {[%emt 0:02:51]} 28. Ba4 {[%emt 0:01:45]} Rd8 {[%emt 0:01:16]} 1/2-1/2

[Event "ESTCC-65 2025"]
[Site "Swidnica"]
[Date "2025.04.13"]
[Round "9.14"]
[White "Kyas, Juergen"]
[Black "Bowmer, Kevin"]
[Result "1/2-1/2"]
[Annotator "ChessBase"]
[ECO "B83"]
[WhiteElo "2168"]
[BlackElo "2126"]
[PlyCount "58"]
[EventDate "2025.04.05"]
[EventType "team-tourn"]
[EventCountry "POL"]
[SourceTitle "playchess.com"]
[Source "ChessBase"]
[SourceQuality "1"]
[WhiteTeam "Germany"]
[BlackTeam "England"]
[WhiteTeamCountry "GER"]
[BlackTeamCountry "ENG"]
[TimeControl "40/5400+30:1800+30"]

1. e4 {[%emt 0:00:02]} c5 {[%emt 0:00:10]} 2. Nf3 {[%emt 0:00:04]} d6 {[%emt 0:00:12]} 3. d4 {[%emt 0:00:06]} cxd4 {[%emt 0:00:06]} 4. Nxd4 {[%emt 0:00:06]} Nf6 {[%emt 0:00:07]} 5. Nc3 {[%emt 0:00:02]} Nc6 {[%emt 0:00:14]} 6. Be2 {[%emt 0:00:06]} e6 {[%emt 0:00:14]} 7. Be3 {[%emt 0:00:45]} Be7 {[%emt 0:00:20]} 8. O-O {[%emt 0:00:22]} O-O {[%emt 0:00:25]} 9. f4 {[%emt 0:00:07]} Bd7 {[%emt 0:00:29]} 10. Nb3 {[%emt 0:01:21]} a6 {[%emt 0:01:18]} 11. a4 {[%emt 0:01:19]} Rc8 {[%emt 0:04:25]} 12. a5 {[%emt 0:01:50]} Qc7 {[%emt 0:00:59]} 13. Bb6 {[%emt 0:10:29]} Qb8 {[%emt 0:00:16]} 14. Bf3 {[%emt 0:00:30]} Nb4 {[%emt 0:07:42]} 15. Rf2 {[%emt 0:10:00]} Bc6 {[%emt 0:03:36]} 16. Qd4 {[%emt 0:12:15]} d5 {[%emt 0:08:18]} 17. e5 {[%emt 0:00:11]} Nd7 {[%emt 0:06:06]} 18. Kh1 {[%emt 0:01:27]} Nxb6 {[%emt 0:07:57]} 19. axb6 {[%emt 0:00:07]} Bd7 {[%emt 0:00:38]} 20. Rd2 {[%emt 0:07:01]} Kh8 {[%emt 0:08:25]} 21. Be2 {[%emt 0:02:21]} f6 {[%emt 0:11:21]} 22. exf6 {[%emt 0:03:48]} Rxf6 {[%emt 0:01:34]} 23. g3 {[%emt 0:01:07]} Be8 24. Re1 {[%emt 0:01:44]} Bg6 {[%emt 0:04:45]} 25. Bd3 {[%emt 0:02:38]} Nxd3 {[%emt 0:01:56]} 26. cxd3 {[%emt 0:00:02]} Qd6 {[%emt 0:02:51]} 27. Rde2 {[%emt 0:13:48]} Bd8 {[%emt 0:08:42]} 28. Na4 {[%emt 0:04:26]} Bh5 {[%emt 0:04:26]} 29. Re5 {[%emt 0:04:06]} Bg4 {[%emt 0:04:01]} 1/2-1/2

[Event "ESTCC-65 2025"]
[Site "Swidnica"]
[Date "2025.04.13"]
[Round "9.15"]
[White "Hewson, Brian W R"]
[Black "Topchii, Gennadii"]
[Result "1-0"]
[Annotator "ChessBase"]
[ECO "A38"]
[WhiteElo "2066"]
[BlackElo "2012"]
[PlyCount "111"]
[EventDate "2025.04.05"]
[EventType "team-tourn"]
[EventCountry "POL"]
[SourceTitle "playchess.com"]
[Source "ChessBase"]
[SourceQuality "1"]
[WhiteTeam "England"]
[BlackTeam "Germany"]
[WhiteTeamCountry "ENG"]
[BlackTeamCountry "GER"]
[TimeControl "40/5400+30:1800+30"]

1. c4 {[%emt 0:00:05]} Nf6 {[%emt 0:01:19]} 2. Nf3 {[%emt 0:00:35]} c5 {[%emt 0:01:02]} 3. g3 {[%emt 0:01:07]} Nc6 {[%emt 0:00:17]} 4. Bg2 {[%emt 0:00:12]} g6 {[%emt 0:00:35]} 5. Nc3 {[%emt 0:05:32]} Bg7 {[%emt 0:00:21]} 6. O-O {[%emt 0:06:07]} O-O {[%emt 0:00:20]} 7. a3 {[%emt 0:00:44]} d5 {[%emt 0:00:56]} 8. cxd5 {[%emt 0:06:00]} Nxd5 {[%emt 0:00:12]} 9. Nxd5 {[%emt 0:00:12]} Qxd5 {[%emt 0:00:11]} 10. d3 {[%emt 0:00:17]} Qd7 {[%emt 0:02:59]} 11. Rb1 {[%emt 0:00:48]} b6 {[%emt 0:00:31]} 12. Bd2 {[%emt 0:02:36]} Bb7 {[%emt 0:00:20]} 13. Qc1 {[%emt 0:01:24]} Rfd8 {[%emt 0:00:26]} 14. Bh6 {[%emt 0:00:11]} Bh8 {[%emt 0:00:21]} 15. Qc2 {[%emt 0:07:05]} Rac8 {[%emt 0:01:02]} 16. Rfc1 {[%emt 0:00:51]} e5 {[%emt 0:06:04]} 17. Qa4 {[%emt 0:13:01]} Nd4 {[%emt 0:16:30]} 18. Qxd7 {[%emt 0:02:52]} Nxf3+ {[%emt 0:00:18]} 19. Bxf3 {[%emt 0:00:08]} Rxd7 {[%emt 0:00:08]} 20. Bxb7 {[%emt 0:01:02]} Rxb7 {[%emt 0:00:01]} 21. Rc2 {[%emt 0:00:45]} Bf6 {[%emt 0:10:34]} 22. Be3 {[%emt 0:00:28]} Be7 {[%emt 0:00:49]} 23. d4 {[%emt 0:04:28]} exd4 {[%emt 0:00:16]} 24. Bxd4 {[%emt 0:00:06]} Rd8 {[%emt 0:00:29]} 25. Be3 {[%emt 0:00:16]} Rbd7 {[%emt 0:00:31]} 26. Kg2 f5 {[%emt 0:00:23]} 27. h4 {[%emt 0:06:55]} Kf7 {[%emt 0:00:18]} 28. Kf3 {[%emt 0:00:49]} Ke6 {[%emt 0:01:26]} 29. Bf4 {[%emt 0:03:12]} Rd1 {[%emt 0:04:13]} 30. Rxd1 {[%emt 0:04:17]} Rxd1 {[%emt 0:00:01]} 31. Bb8 {[%emt 0:02:06]} Rd7 {[%emt 0:04:26]} 32. e4 {[%emt 0:02:17]} Rd3+ {[%emt 0:00:45]} 33. Ke2 {[%emt 0:00:29]} fxe4 {[%emt 0:00:15]} 34. Bxa7 {[%emt 0:00:28]} Rb3 {[%emt 0:00:17]} 35. a4 {[%emt 0:02:05]} Kd5 {[%emt 0:01:29]} 36. g4 {[%emt 0:08:02]} Kc6 {[%emt 0:00:42]} 37. Bb8 {[%emt 0:00:29]} Bf6 {[%emt 0:00:16]} 38. h5 {[%emt 0:00:59]} Bxb2 {[%emt 0:00:24]} 39. hxg6 {[%emt 0:01:09]} hxg6 {[%emt 0:00:11]} 40. Bf4 {[%emt 0:00:00]} Bd4 {[%emt 0:00:00]} 41. Bc1 {[%emt 0:03:16]} Kd5 {[%emt 0:01:56]} 42. Ra2 {[%emt 0:04:24]} Rb1 {[%emt 0:00:47]} 43. Bd2 {[%emt 0:03:31]} Rb2 {[%emt 0:01:30]} 44. Rxb2 {[%emt 0:01:07]} Bxb2 {[%emt 0:00:01]} 45. a5 {[%emt 0:00:09]} b5 {[%emt 0:00:41]} 46. a6 {[%emt 0:00:41]} Kc6 {[%emt 0:00:01]} 47. Ke3 {[%emt 0:00:13]} Bd4+ {[%emt 0:00:18]} 48. Kxe4 {[%emt 0:00:18]} Bxf2 {[%emt 0:00:02]} 49. Ke5 {[%emt 0:02:21]} Bd4+ {[%emt 0:00:15]} 50. Kf4 {[%emt 0:00:13]} Bf6 {[%emt 0:00:21]} 51. Be3 {[%emt 0:01:28]} c4 {[%emt 0:00:24]} 52. Ke4 {[%emt 0:00:23]} b4 {[%emt 0:00:35]} 53. a7 {[%emt 0:00:39]} Kb7 {[%emt 0:00:01]} 54. Kd5 {[%emt 0:00:08]} b3 {[%emt 0:00:13]} 55. Bc1 {[%emt 0:02:29]} c3 {[%emt 0:00:14]} 56. Ke4 1-0

[Event "ESTCC-65 2025"]
[Site "Swidnica"]
[Date "2025.04.13"]
[Round "9.16"]
[White "Dietze, Frank"]
[Black "Reynolds, D Ian W"]
[Result "1-0"]
[Annotator "ChessBase"]
[ECO "E35"]
[WhiteElo "2102"]
[BlackElo "1926"]
[PlyCount "51"]
[EventDate "2025.04.05"]
[EventType "team-tourn"]
[EventCountry "POL"]
[SourceTitle "playchess.com"]
[Source "ChessBase"]
[SourceQuality "1"]
[WhiteTeam "Germany"]
[BlackTeam "England"]
[WhiteTeamCountry "GER"]
[BlackTeamCountry "ENG"]
[TimeControl "40/5400+30:1800+30"]

1. d4 {[%emt 0:00:15]} Nf6 {[%emt 0:00:07]} 2. c4 {[%emt 0:00:36]} e6 {[%emt 0:00:07]} 3. Nc3 {[%emt 0:00:43]} Bb4 {[%emt 0:00:08]} 4. Qc2 {[%emt 0:00:33]} d5 {[%emt 0:03:09]} 5. cxd5 {[%emt 0:01:17]} exd5 {[%emt 0:00:28]} 6. Bg5 {[%emt 0:00:06]} h6 {[%emt 0:02:40]} 7. Bh4 {[%emt 0:00:28]} O-O {[%emt 0:02:38]} 8. e3 {[%emt 0:01:34]} Nbd7 {[%emt 0:06:29]} 9. Nf3 {[%emt 0:02:46]} c6 {[%emt 0:01:19]} 10. Bd3 {[%emt 0:00:49]} Qa5 {[%emt 0:07:25]} 11. O-O {[%emt 0:12:03]} Bxc3 12. bxc3 {[%emt 0:01:37]} Re8 {[%emt 0:05:39]} 13. Nd2 {[%emt 0:03:13]} Qa3 {[%emt 0:08:24]} 14. Rab1 {[%emt 0:07:26]} g5 {[%emt 0:03:31]} 15. Bg3 {[%emt 0:00:56]} Qe7 {[%emt 0:00:35]} 16. e4 {[%emt 0:29:40]} dxe4 {[%emt 0:04:30]} 17. Nxe4 {[%emt 0:00:46]} Nxe4 {[%emt 0:07:26]} 18. Rbe1 {[%emt 0:00:10]} Ndf6 {[%emt 0:14:06]} 19. f3 {[%emt 0:01:25]} Be6 {[%emt 0:03:08]} 20. fxe4 {[%emt 0:01:31]} Nh5 {[%emt 0:02:09]} 21. d5 {[%emt 0:11:51]} cxd5 {[%emt 0:03:08]} 22. exd5 {[%emt 0:02:25]} Nxg3 {[%emt 0:00:20]} 23. Rf2 {[%emt 0:01:19]} Qc5 {[%emt 0:01:46]} 24. dxe6 {[%emt 0:00:33]} fxe6 {[%emt 0:06:04]} 25. hxg3 {[%emt 0:01:53]} Rf8 {[%emt 0:00:54]} 26. Rxe6 {[%emt 0:01:30]} 1-0